bitfinex-derivatives/quotes_BTCF0:USTF0_20250903
["timestamp","ask_amount","ask_price","bid_price","bid_amount"]
[1756915594260,0.40727748,112270.0,112260.0,1.46919027]
[1756915594464,0.40927748,112270.0,112260.0,1.46919027]
[1756915594654,0.41127748,112270.0,112260.0,1.46819027]
[1756915595159,0.41127748,112270.0,112260.0,0.90084]
[1756915595353,0.41127748,112270.0,112260.0,1.46819027]
[1756915595852,0.41127748,112270.0,112260.0,0.90084]
[1756915596049,0.41127748,112270.0,112260.0,1.46819027]
[1756915599058,0.32679748,112270.0,112260.0,1.46819027]
[1756915599661,0.39087037,112270.0,112260.0,1.46819027]
[1756915599958,0.3087915,112270.0,112260.0,1.46819027]
[1756915600159,0.3993415,112270.0,112260.0,1.46819027]
[1756915600458,0.3077915,112270.0,112260.0,1.46819027]
[1756915600659,0.3087915,112270.0,112260.0,1.46819027]
[1756915601253,0.3087915,112270.0,112260.0,0.90084]
[1756915601561,0.3983415,112270.0,112260.0,1.46819027]
[1756915602761,0.3983415,112270.0,112260.0,0.90084]
[1756915602962,0.3983415,112270.0,112260.0,1.82899027]
[1756915604360,0.41434748,112270.0,112260.0,1.82883027]
[1756915605759,0.41434748,112270.0,112260.0,0.00082332]
[1756915605963,0.41434748,112270.0,112260.0,1.39577359]
[1756915606563,0.39544326,112270.0,112260.0,1.39577359]
[1756915607361,0.41472225,112270.0,112260.0,1.39577359]
[1756915607660,0.33464338,112270.0,112260.0,1.39577359]
[1756915609471,0.44684192,112270.0,112260.0,1.39577359]
[1756915609671,0.44684192,112270.0,112260.0,1.39477359]
[1756915615464,0.41481764,112270.0,112260.0,1.39477359]
[1756915615770,0.41481764,112270.0,112260.0,1.32255582]
[1756915619175,0.34262109,112270.0,112260.0,1.32255582]
[1756915619470,0.34262109,112270.0,112260.0,1.39483027]
[1756915620272,0.26244683,112270.0,112260.0,1.39483027]
[1756915620595,0.24509338,112270.0,112260.0,1.75563027]
[1756915620768,0.35729192,112270.0,112260.0,1.75563027]
[1756915621277,0.35729192,112270.0,112260.0,2.02606751]
[1756915621278,0.15634196,112270.0,112260.0,2.02606751]
[1756915621577,0.15632285,112270.0,112260.0,2.02606751]
[1756915621775,0.09216534,112270.0,112260.0,2.68247518]
[1756915622077,0.05396,112290.0,112260.0,2.68247518]
[1756915622273,0.12605655,112290.0,112280.0,1.85630054]
[1756915622478,0.12605655,112290.0,112280.0,2.68374054]
[1756915623469,0.14618336,112290.0,112280.0,2.68374054]
[1756915623677,0.14718336,112290.0,112280.0,2.68374054]
[1756915623880,0.12705655,112290.0,112280.0,2.68374054]
[1756915624178,0.12805655,112290.0,112280.0,2.68374054]
[1756915626076,0.14806944,112290.0,112280.0,2.68374054]
[1756915626276,0.12805655,112290.0,112280.0,2.68374054]
[1756915626472,0.07419655,112290.0,112280.0,2.68374054]
[1756915626677,0.07419655,112290.0,112280.0,1.8773863]
[1756915627171,0.07419655,112290.0,112280.0,2.7047063]
[1756915628272,0.12510655,112290.0,112280.0,1.8773863]
[1756915628677,0.12510655,112290.0,112280.0,2.7046263]
[1756915630581,0.21465655,112290.0,112280.0,0.74268576]
[1756915630783,0.21465655,112290.0,112280.0,2.7045863]
[1756915631885,0.27859455,112290.0,112280.0,2.7045863]
[1756915633185,0.18904455,112290.0,112280.0,2.7045863]
[1756915633688,0.18904455,112290.0,112280.0,2.84597428]
[1756915637189,0.13813455,112290.0,112280.0,2.84597428]
[1756915637492,0.07419655,112290.0,112280.0,2.84597428]
[1756915637785,0.19487828,112310.0,112280.0,3.09597428]
[1756915637987,0.14386828,112320.0,112300.0,1.99768852]
[1756915638190,0.26497297,112330.0,112320.0,0.01296]
[1756915638387,0.07277794,112330.0,112320.0,1.64984852]
[1756915638584,0.0484,112340.0,112320.0,1.89984852]
[1756915638783,0.0484,112340.0,112330.0,2.05152568]
[1756915640296,0.0544,112340.0,112330.0,2.05152568]
[1756915640498,0.0544,112340.0,112330.0,2.05148568]
[1756915640796,0.07489534,112340.0,112330.0,1.22448568]
[1756915640993,0.84881477,112340.0,112330.0,0.79912284]
[1756915641196,0.91846821,112340.0,112330.0,1.26528284]
[1756915641683,0.91846821,112340.0,112330.0,0.83992]
[1756915641885,0.49710537,112340.0,112330.0,1.26528284]
[1756915642090,0.54492847,112340.0,112330.0,1.26528284]
[1756915642494,0.54492847,112340.0,112330.0,1.62608284]
[1756915642795,0.54492847,112340.0,112330.0,1.26528284]
[1756915643590,0.54492847,112340.0,112330.0,1.62608284]
[1756915643790,0.54492847,112340.0,112330.0,1.26528284]
[1756915644190,0.49710537,112340.0,112330.0,1.62608284]
[1756915644396,0.49710537,112340.0,112330.0,1.26528284]
[1756915644602,0.49710537,112340.0,112330.0,1.62608284]
[1756915645297,0.49710537,112340.0,112330.0,1.20072]
[1756915645499,0.49710537,112340.0,112330.0,1.62608284]
[1756915645697,0.49710537,112340.0,112330.0,1.26528284]
[1756915646801,0.49710537,112340.0,112330.0,1.62608284]
[1756915647197,0.49710537,112340.0,112330.0,1.20072]
[1756915647501,0.49710537,112340.0,112330.0,1.62608284]
[1756915649102,0.49710537,112340.0,112330.0,1.20072]
[1756915649303,0.56085827,112340.0,112330.0,1.62608284]
[1756915650198,0.11320537,112340.0,112330.0,2.05144568]
[1756915650401,0.16104136,112340.0,112330.0,2.05144568]
[1756915650601,0.20944136,112340.0,112330.0,2.05144568]
[1756915650800,0.16160537,112340.0,112330.0,1.20072]
[1756915651102,0.16160537,112340.0,112330.0,2.05144568]
[1756915651605,0.16160537,112340.0,112330.0,1.20072]
[1756915651904,0.16160537,112340.0,112330.0,2.05144568]
[1756915653208,0.24710537,112340.0,112330.0,0.79912284]
[1756915653402,0.24710537,112340.0,112330.0,1.62564284]
[1756915653601,0.24710537,112340.0,112330.0,0.79912284]
[1756915653801,0.31085827,112340.0,112330.0,1.62564284]
[1756915654200,0.31085827,112340.0,112330.0,2.05100568]
[1756915654601,0.24710537,112340.0,112330.0,2.05100568]
[1756915655610,0.29495262,112340.0,112330.0,2.05100568]
[1756915656410,0.29495491,112340.0,112330.0,2.05100568]
[1756915658906,0.16105491,112340.0,112330.0,2.05100568]
[1756915659108,0.12750298,112340.0,112330.0,2.72636852]
[1756915659311,0.07965344,112340.0,112330.0,2.72636852]
[1756915660704,0.07965344,112340.0,112330.0,2.72620852]
[1756915660906,0.07965344,112340.0,112330.0,2.05080568]
[1756915661216,0.07965344,112340.0,112330.0,1.22448568]
[1756915661610,0.07965344,112340.0,112330.0,2.05080568]
[1756915663608,0.13115344,112340.0,112330.0,2.05080568]
[1756915664314,0.12750298,112340.0,112330.0,2.05080568]
[1756915666103,0.17900298,112340.0,112330.0,2.05080568]
[1756915666308,0.12750298,112340.0,112330.0,2.05080568]
[1756915670313,0.12150298,112340.0,112330.0,2.05080568]
[1756915670616,0.12350298,112340.0,112330.0,2.05080568]
[1756915671215,0.46138344,112340.0,112330.0,0.79912284]
[1756915671416,0.53819293,112340.0,112330.0,0.79912284]
[1756915671616,0.53819293,112340.0,112330.0,2.33416284]
[1756915671917,0.53819293,112340.0,112330.0,2.75952568]
[1756915672319,0.53619293,112340.0,112330.0,2.75952568]
[1756915673216,0.20196293,112340.0,112330.0,2.75952568]
[1756915673520,0.13740634,112340.0,112330.0,2.77544568]
[1756915674116,0.13740634,112340.0,112330.0,3.45080852]
[1756915674319,0.0637529,112350.0,112340.0,0.14354683]
[1756915674613,0.07443236,112360.0,112340.0,1.78931535]
[1756915674820,0.07443236,112360.0,112350.0,2.03748568]
[1756915675013,0.0637529,112360.0,112350.0,2.03748568]
[1756915676114,0.0687529,112360.0,112350.0,2.03748568]
[1756915676317,0.0717529,112360.0,112350.0,2.03748568]
[1756915676824,0.2074829,112360.0,112350.0,2.04632568]
[1756915677723,0.2772875,112360.0,112350.0,2.04632568]
[1756915678222,0.29529798,112360.0,112350.0,2.04632568]
[1756915680522,0.1415575,112360.0,112350.0,2.63367251]
[1756915682418,0.1415575,112360.0,112350.0,2.63351251]
[1756915682622,0.1930575,112360.0,112350.0,2.63351251]
[1756915683537,0.1930575,112360.0,112350.0,2.63347251]
[1756915683718,0.20136026,112360.0,112350.0,2.63347251]
[1756915684536,0.1930575,112360.0,112350.0,2.63347251]
[1756915684816,0.1293046,112360.0,112350.0,2.63347251]
[1756915685827,0.1930575,112360.0,112350.0,2.63347251]
[1756915690229,0.1890575,112360.0,112350.0,2.63347251]
[1756915690526,0.2732875,112360.0,112350.0,0.95702683]
[1756915690730,0.2732875,112360.0,112350.0,2.63327251]
[1756915692223,0.2712875,112360.0,112350.0,2.63319251]
[1756915692623,0.2712875,112360.0,112350.0,1.80775251]
[1756915692822,0.2712875,112360.0,112350.0,2.63319251]
[1756915693022,0.2712875,112360.0,112350.0,1.80775251]
[1756915693225,0.2712875,112360.0,112350.0,2.63319251]
[1756915695427,0.2712875,112360.0,112350.0,2.34894332]
[1756915696331,0.2712875,112360.0,112350.0,1.52350332]
[1756915696529,0.2712875,112360.0,112350.0,2.34886332]
[1756915697131,0.2712875,112360.0,112350.0,1.52350332]
[1756915697331,0.2712875,112360.0,112350.0,2.34882332]
[1756915697732,0.2712875,112360.0,112350.0,1.52350332]
[1756915697927,0.52959026,112360.0,112350.0,0.95702683]
[1756915698121,0.52959026,112360.0,112350.0,1.42150683]
[1756915698424,0.54551822,112360.0,112350.0,1.54458332]
[1756915698831,0.56418414,112360.0,112350.0,0.71930332]
[1756915699134,0.56418414,112360.0,112350.0,1.33002683]
[1756915700233,0.54851324,112360.0,112350.0,1.89650332]
[1756915700933,0.48450328,112360.0,112350.0,1.89650332]
[1756915701529,0.54851951,112360.0,112350.0,1.89650332]
[1756915703034,0.54851951,112360.0,112350.0,1.91238332]
[1756915704632,0.54851951,112360.0,112350.0,1.34590683]
[1756915704633,0.56418414,112360.0,112350.0,1.34590683]
[1756915705935,0.56418414,112360.0,112350.0,0.98750683]
[1756915706236,0.56418414,112360.0,112350.0,0.91534555]
[1756915706434,0.56418414,112360.0,112350.0,1.48182204]
[1756915706936,0.54551822,112360.0,112350.0,1.48182204]
[1756915709938,0.54551822,112360.0,112350.0,0.91534555]
[1756915710137,0.54551822,112360.0,112350.0,1.48182204]
[1756915710435,1.22279471,112360.0,112350.0,0.91510555]
[1756915710637,1.14311385,112360.0,112350.0,0.91510555]
[1756915710842,1.14311385,112360.0,112350.0,0.91470555]
[1756915711040,0.57663736,112360.0,112350.0,0.91470555]
[1756915711540,0.57663736,112360.0,112350.0,0.91510555]
[1756915711840,0.59538103,112360.0,112350.0,0.91510555]
[1756915713238,0.67539072,112360.0,112350.0,0.91510555]
[1756915715640,0.67539072,112360.0,112350.0,0.91270555]
[1756915715841,0.59538103,112360.0,112350.0,0.91270555]
[1756915716044,0.70757957,112360.0,112350.0,0.91270555]
[1756915716242,0.70757957,112360.0,112350.0,0.82544]
[1756915716543,1.65795692,112360.0,112350.0,0.0004]
[1756915716742,1.65795692,112360.0,112340.0,1.09102]
[1756915716935,1.17420503,112350.0,112340.0,0.82582]
[1756915717135,1.1929487,112350.0,112340.0,0.82572]
[1756915717338,1.32795561,112350.0,112340.0,0.82492]
[1756915717636,1.32795561,112350.0,112340.0,0.82532]
[1756915717829,1.32795561,112350.0,112340.0,0.82492]
[1756915718139,1.32795561,112350.0,112340.0,0.82532]
[1756915718939,1.57795561,112350.0,112340.0,0.0004]
[1756915719833,1.01147912,112350.0,112340.0,0.0004]
[1756915720036,2.40283561,112350.0,112340.0,0.0004]
[1756915720242,1.83835912,112350.0,112340.0,0.0004]
[1756915720541,2.40483561,112350.0,112340.0,0.0004]
[1756915721041,2.40583561,112350.0,112340.0,0.0004]
[1756915721237,2.40483561,112350.0,112340.0,0.0004]
[1756915721442,2.40783561,112350.0,112340.0,0.0004]
[1756915721740,1.58295561,112350.0,112340.0,0.0004]
[1756915723447,1.58295631,112350.0,112340.0,0.0004]
[1756915724242,1.01647982,112350.0,112340.0,0.0004]
[1756915724447,1.58295631,112350.0,112340.0,0.0004]
[1756915725239,2.40771631,112350.0,112340.0,0.0004]
[1756915725844,1.84123982,112350.0,112340.0,0.0004]
[1756915726044,2.40771631,112350.0,112340.0,0.0004]
[1756915726246,2.40771631,112350.0,112340.0,9.08e-06]
[1756915727545,1.58295631,112350.0,112340.0,9.08e-06]
[1756915727742,1.33295631,112350.0,112340.0,0.00241908]
[1756915728247,0.76647982,112350.0,112340.0,0.00241908]
[1756915733945,0.76647982,112350.0,112340.0,0.56889557]
[1756915734152,0.35741181,112350.0,112340.0,0.81889557]
[1756915734342,0.35741181,112350.0,112340.0,1.64349557]
[1756915734750,0.35781181,112350.0,112340.0,1.64349557]
[1756915734953,0.35781181,112350.0,112340.0,1.07701908]
[1756915735142,0.29388128,112350.0,112340.0,0.25241908]
[1756915735453,0.29388128,112350.0,112340.0,1.07697908]
[1756915735636,0.65268128,112350.0,112340.0,1.07697908]
[1756915735840,1.22015777,112350.0,112340.0,9.08e-06]
[1756915736043,1.22015777,112350.0,112340.0,0.82456908]
[1756915736244,1.22015777,112350.0,112340.0,9.08e-06]
[1756915736438,0.04988,112340.0,112330.0,1.65633649]
[1756915736643,0.12982257,112340.0,112330.0,1.65623649]
[1756915736840,0.2935642,112340.0,112330.0,1.65623649]
[1756915738245,0.2945642,112340.0,112330.0,1.65623649]
[1756915739045,0.2945642,112340.0,112330.0,1.08976]
[1756915739246,0.2945642,112340.0,112330.0,1.65623649]
[1756915739454,0.2955642,112340.0,112330.0,1.65623649]
[1756915739855,0.3773442,112340.0,112330.0,0.83167649]
[1756915740155,0.3773442,112340.0,112330.0,1.65611649]
[1756915740856,0.3773442,112340.0,112330.0,0.83167649]
[1756915741055,0.3773442,112340.0,112330.0,1.65611649]
[1756915741256,0.29740163,112340.0,112330.0,1.65611649]
[1756915742258,0.29740163,112340.0,112330.0,1.08964]
[1756915742455,0.29740163,112340.0,112330.0,0.83167649]
[1756915742656,0.29740163,112340.0,112330.0,1.65603649]
[1756915743360,0.40960017,112340.0,112330.0,1.65603649]
[1756915743658,0.40960017,112340.0,112330.0,0.83167649]
[1756915743958,0.40960017,112340.0,112330.0,1.65603649]
[1756915745563,0.40960017,112340.0,112330.0,0.83167649]
[1756915745858,0.40960017,112340.0,112330.0,1.65595649]
[1756915746362,0.40960017,112340.0,112330.0,1.58378198]
[1756915746760,0.29740163,112340.0,112330.0,1.58378198]
[1756915747262,0.27765726,112340.0,112330.0,1.58378198]
[1756915748161,0.29635451,112340.0,112330.0,1.58378198]
[1756915749162,0.29635451,112340.0,112330.0,0.19302549]
[1756915749461,0.29635451,112340.0,112330.0,1.01722549]
[1756915749963,0.29635451,112340.0,112330.0,1.01762549]
[1756915751164,0.54635451,112340.0,112330.0,1.01754549]
[1756915751354,0.62648509,112340.0,112330.0,1.01754549]
[1756915751761,0.62648509,112340.0,112330.0,0.19342549]
[1756915751963,0.98728509,112340.0,112330.0,1.01754549]
[1756915752167,0.90715451,112340.0,112330.0,1.01754549]
[1756915752365,1.01935305,112340.0,112330.0,1.01714549]
[1756915752566,1.01935305,112340.0,112330.0,1.01754549]
[1756915753968,1.01935305,112340.0,112330.0,0.19342549]
[1756915754163,1.33582954,112340.0,112330.0,1.01750549]
[1756915754367,1.33582954,112340.0,112320.0,0.56737649]
[1756915754368,0.05091,112330.0,112320.0,0.89682437]
[1756915754667,0.60773396,112330.0,112320.0,0.89672437]
[1756915754874,0.76431744,112330.0,112320.0,0.89672437]
[1756915755673,1.18958743,112330.0,112320.0,1.32299436]
[1756915755975,1.18958743,112330.0,112320.0,1.32339436]
[1756915756472,1.07739347,112330.0,112320.0,1.25120943]
[1756915757167,1.13881099,112330.0,112320.0,1.25120943]
[1756915757670,1.13881099,112330.0,112320.0,1.25066999]
[1756915757869,1.14081099,112330.0,112320.0,1.24966999]
[1756915758476,1.06069622,112330.0,112320.0,1.24926999]
[1756915758667,1.06069622,112330.0,112320.0,1.24966999]
[1756915758868,1.06069622,112330.0,112320.0,0.824]
[1756915759064,1.06069622,112330.0,112320.0,0.8244]
[1756915759676,1.06069622,112330.0,112320.0,1.24966999]
[1756915760479,1.06069622,112330.0,112320.0,0.8244]
[1756915760776,1.06069622,112330.0,112320.0,1.24966999]
[1756915761101,1.06069622,112330.0,112320.0,0.8244]
[1756915761279,1.17740994,112330.0,112320.0,1.24966999]
[1756915762679,0.75213995,112330.0,112320.0,1.24966999]
[1756915762866,0.89667094,112330.0,112320.0,1.24966999]
[1756915763266,0.35468723,112330.0,112320.0,1.67493998]
[1756915763467,0.27085723,112330.0,112320.0,2.03573998]
[1756915764179,0.27085723,112330.0,112320.0,1.4352]
[1756915764576,0.27085723,112330.0,112320.0,2.28573998]
[1756915765168,0.28947363,112330.0,112320.0,2.28573998]
[1756915765580,0.28847363,112330.0,112320.0,2.28573998]
[1756915765779,0.20841263,112330.0,112320.0,2.28573998]
[1756915766984,0.28847363,112330.0,112320.0,2.28573998]
[1756915768686,0.64927363,112330.0,112320.0,1.0744]
[1756915768983,1.15837362,112330.0,112320.0,0.0004]
[1756915769176,1.40837362,112330.0,112320.0,1.242e-05]
[1756915769396,1.44050658,112330.0,112320.0,1.242e-05]
[1756915769573,0.13474,112320.0,112310.0,0.82454]
[1756915769774,1.05162035,112320.0,112310.0,0.82364]
[1756915769976,0.13474,112310.0,112300.0,0.51426999]
[1756915770170,0.6586902,112310.0,112300.0,1.33780999]
[1756915770378,0.66582285,112310.0,112300.0,1.33700999]
[1756915770581,0.66582285,112310.0,112300.0,1.33740999]
[1756915770983,0.58575904,112310.0,112300.0,1.33700999]
[1756915771183,0.66579595,112310.0,112300.0,1.33740999]
[1756915771484,0.60158943,112310.0,112300.0,1.33740999]
[1756915771681,0.17631944,112310.0,112300.0,1.33940999]
[1756915771985,0.60158943,112310.0,112300.0,0.91414]
[1756915772283,0.24033851,112310.0,112300.0,1.33840999]
[1756915772783,0.6656085,112310.0,112300.0,1.33840999]
[1756915773486,0.24033851,112310.0,112300.0,1.33840999]
[1756915773680,1.2764085,112310.0,112300.0,0.0895]
[1756915773888,1.77166244,112310.0,112300.0,0.0891]
[1756915774079,1.85168628,112310.0,112300.0,0.01649]
[1756915774290,1.85168628,112310.0,112300.0,0.001]
[1756915774679,1.85168628,112310.0,112300.0,0.0014]
[1756915775386,1.77166244,112310.0,112300.0,0.0014]
[1756915778086,1.34639245,112310.0,112300.0,0.0014]
[1756915778483,1.77166244,112310.0,112300.0,0.0014]
[1756915783689,1.8838564,112310.0,112300.0,2.568e-05]
[1756915784087,1.8868564,112310.0,112300.0,2.568e-05]
[1756915784287,1.8888564,112310.0,112300.0,2.568e-05]
[1756915784685,0.12861,112300.0,112290.0,0.04782]
[1756915784890,2.29440034,112300.0,112290.0,0.04772]
[1756915785084,2.4431282,112300.0,112290.0,0.04772]
[1756915785587,0.55387999,112290.0,112280.0,0.06245]
[1756915785787,1.01314275,112290.0,112280.0,0.06235]
[1756915786092,0.047,112280.0,112270.0,1.62490999]
[1756915786294,0.11087491,112280.0,112270.0,1.62480999]
[1756915786490,0.14730766,112280.0,112270.0,1.62480999]
[1756915787294,0.14830766,112280.0,112270.0,1.62480999]
[1756915788397,0.14830766,112280.0,112270.0,1.19954]
[1756915788698,0.14830766,112280.0,112270.0,1.62480999]
[1756915790398,0.10130766,112280.0,112270.0,1.62480999]
[1756915791899,0.10130766,112280.0,112270.0,1.60970999]
[1756915792595,0.14830766,112280.0,112270.0,1.60970999]
[1756915792999,0.10130766,112280.0,112270.0,1.60970999]
[1756915793400,0.10130766,112280.0,112270.0,2.03497998]
[1756915794098,0.10130766,112280.0,112270.0,1.60970999]
[1756915795099,0.14830766,112280.0,112270.0,1.60970999]
[1756915795300,0.08443275,112280.0,112270.0,1.60970999]
[1756915795500,0.14836451,112280.0,112270.0,1.60970999]
[1756915796104,0.08443275,112280.0,112270.0,1.60970999]
[1756915796501,0.16427911,112280.0,112270.0,1.60970999]
[1756915800203,0.16427911,112280.0,112270.0,1.53749978]
[1756915800402,0.11727911,112280.0,112270.0,1.53749978]
[1756915800819,0.11727911,112280.0,112270.0,2.21276977]
[1756915801104,0.10149552,112280.0,112270.0,2.21276977]
[1756915801305,0.03743275,112280.0,112270.0,2.21276977]
[1756915802000,0.03743275,112280.0,112270.0,2.21376977]
[1756915802310,0.09866271,112280.0,112270.0,2.21376977]
[1756915803105,0.11627911,112280.0,112270.0,2.21576977]
[1756915803303,0.11627911,112280.0,112270.0,1.46433998]
[1756915803505,0.16327911,112280.0,112270.0,1.46433998]
[1756915803707,0.16327911,112280.0,112270.0,2.28793998]
[1756915804009,0.16327911,112280.0,112270.0,1.86266999]
[1756915805605,0.16327911,112280.0,112270.0,1.03906999]
[1756915806007,0.16327911,112280.0,112270.0,1.86062999]
[1756915806610,0.16327911,112280.0,112270.0,1.03706999]
[1756915806911,0.16327911,112280.0,112270.0,1.86062999]
[1756915808005,0.16327911,112280.0,112270.0,1.49982999]
[1756915809111,0.16504275,112280.0,112270.0,1.56213999]
[1756915810203,0.16504275,112280.0,112270.0,1.06465888]
[1756915810409,0.22663721,112280.0,112270.0,1.48992887]
[1756915810612,0.14642635,112280.0,112270.0,1.48992887]
[1756915811221,0.14642635,112280.0,112270.0,0.66640887]
[1756915811407,0.22663605,112280.0,112270.0,1.48988887]
[1756915813710,0.97411716,112280.0,112270.0,0.06335]
[1756915813917,1.89365512,112280.0,112270.0,0.06335]
[1756915814122,0.12152,112270.0,112260.0,0.0030786]
[1756915814411,0.04503,112260.0,112250.0,1.25030999]
[1756915814712,0.85015159,112260.0,112250.0,1.24870999]
[1756915814915,0.87034845,112260.0,112250.0,1.24910999]
[1756915815117,0.98259729,112260.0,112250.0,1.24910999]
[1756915815307,0.98259729,112260.0,112250.0,1.20095651]
[1756915815506,0.98259729,112260.0,112250.0,0.77568652]
[1756915815507,0.6338173,112260.0,112250.0,0.77568652]
[1756915815911,0.52156846,112260.0,112250.0,0.77568652]
[1756915816709,0.52156846,112260.0,112250.0,0.77768652]
[1756915817213,0.6016212,112260.0,112250.0,0.77868652]
[1756915817412,0.6016212,112260.0,112250.0,1.34643221]
[1756915818722,0.6016212,112260.0,112250.0,0.77868652]
[1756915818919,0.6016212,112260.0,112250.0,1.34643221]
[1756915820315,0.6016212,112260.0,112250.0,0.7064563]
[1756915822017,0.6016212,112260.0,112250.0,0.0034]
[1756915822217,1.3677385,112260.0,112250.0,0.0034]
[1756915822417,1.28768576,112260.0,112250.0,0.72992]
[1756915823325,1.53768576,112260.0,112250.0,0.0034]
[1756915824225,1.53812947,112260.0,112250.0,0.0034]
[1756915824718,1.47415559,112260.0,112250.0,0.0034]
[1756915825128,1.58640443,112260.0,112250.0,0.0034]
[1756915826330,1.47415559,112260.0,112250.0,0.0034]
[1756915828031,2.29759559,112260.0,112250.0,0.0034]
[1756915828628,2.40984443,112260.0,112250.0,0.0034]
[1756915829025,0.12152,112250.0,112240.0,0.0009]
[1756915829223,1.069561,112250.0,112240.0,0.0008]
[1756915829424,1.32900993,112250.0,112240.0,0.0008]
[1756915830032,0.76126424,112250.0,112240.0,0.0008]
[1756915830231,0.04503,112240.0,112230.0,1.46433569]
[1756915830431,0.20142024,112240.0,112230.0,0.89649]
[1756915830629,0.24349378,112240.0,112230.0,1.46423569]
[1756915831233,0.2583221,112240.0,112230.0,1.46423569]
[1756915832437,0.1368021,112240.0,112230.0,2.07703569]
[1756915832655,0.05690186,112240.0,112230.0,2.07703569]
[1756915833337,0.10193186,112240.0,112230.0,2.07903569]
[1756915833731,0.10193186,112240.0,112230.0,1.51129]
[1756915833932,0.10193186,112240.0,112230.0,2.07903569]
[1756915834434,0.05690186,112240.0,112230.0,2.07903569]
[1756915836539,0.10193186,112240.0,112230.0,2.07903569]
[1756915837140,0.1818321,112240.0,112230.0,2.07903569]
[1756915839940,0.1818321,112240.0,112230.0,2.03087803]
[1756915841340,0.1818321,112240.0,112230.0,1.20743803]
[1756915841540,0.1818321,112240.0,112230.0,1.66999803]
[1756915841736,0.1818321,112240.0,112230.0,1.3477596]
[1756915841938,0.2583221,112240.0,112230.0,0.56774569]
[1756915842150,0.17842186,112240.0,112230.0,1.39110569]
[1756915842443,0.25848051,112240.0,112230.0,1.39110569]
[1756915843240,0.17842186,112240.0,112230.0,1.39110569]
[1756915843446,0.2906707,112240.0,112230.0,0.82336]
[1756915843944,0.2906707,112240.0,112230.0,1.39110569]
[1756915845544,0.2906707,112240.0,112230.0,0.56774569]
[1756915845745,0.2906707,112240.0,112230.0,1.39106569]
[1756915846245,0.12457,112230.0,112220.0,0.94914541]
[1756915846435,0.58499928,112230.0,112220.0,0.02049972]
[1756915846640,0.04832,112220.0,112210.0,2.27404]
[1756915846837,0.12845397,112220.0,112210.0,3.66500569]
[1756915847042,0.14794928,112220.0,112210.0,3.66500569]
[1756915847552,0.21761307,112220.0,112210.0,3.66500569]
[1756915848855,0.29386307,112220.0,112210.0,0.39118]
[1756915849048,0.29386307,112220.0,112210.0,1.2145]
[1756915849248,0.29386307,112220.0,112210.0,1.78224569]
[1756915849454,0.29386307,112220.0,112210.0,1.78824569]
[1756915851155,0.29386307,112220.0,112210.0,1.2205]
[1756915851358,0.29386307,112220.0,112210.0,1.78824569]
[1756915852555,0.21761307,112220.0,112210.0,1.78824569]
[1756915853279,0.21761307,112220.0,112210.0,1.2205]
[1756915853556,0.29386307,112220.0,112210.0,1.2205]
[1756915853755,0.29386307,112220.0,112210.0,1.78824569]
[1756915855957,0.29386307,112220.0,112210.0,1.2205]
[1756915856158,0.29386307,112220.0,112210.0,1.78824569]
[1756915859561,0.27782452,112220.0,112210.0,1.78824569]
[1756915859863,0.31943968,112220.0,112210.0,1.78824569]
[1756915860059,0.31943968,112220.0,112210.0,1.78379569]
[1756915860763,0.24318968,112220.0,112210.0,1.78379569]
[1756915863554,0.19486968,112220.0,112210.0,1.78379569]
[1756915863762,0.15324576,112220.0,112210.0,2.03379569]
[1756915864061,0.15324576,112220.0,112210.0,2.03355569]
[1756915865657,0.27781576,112220.0,112210.0,0.64249]
[1756915865856,0.20156576,112220.0,112210.0,2.03355569]
[1756915866261,0.15324576,112220.0,112210.0,2.03355569]
[1756915868463,0.15324576,112220.0,112210.0,1.78355569]
[1756915869370,0.13724231,112220.0,112210.0,2.03355569]
[1756915869963,0.0891591,112220.0,112210.0,2.03355569]
[1756915870364,0.0891591,112220.0,112210.0,1.21023569]
[1756915870565,0.0891591,112220.0,112210.0,2.03351569]
[1756915870764,0.18480231,112220.0,112210.0,2.03351569]
[1756915873474,0.18480231,112220.0,112210.0,1.21023569]
[1756915873675,0.20080576,112220.0,112210.0,2.03347569]
[1756915873875,0.27565576,112220.0,112210.0,1.78347569]
[1756915875479,0.20080576,112220.0,112210.0,1.78347569]
[1756915875875,0.20080576,112220.0,112210.0,0.96023569]
[1756915876176,0.27565576,112220.0,112210.0,1.78347569]
[1756915876964,0.27565576,112220.0,112210.0,1.21573]
[1756915877170,0.27565576,112220.0,112210.0,1.78347569]
[1756915877486,0.27565576,112220.0,112210.0,2.06760684]
[1756915877669,0.20080576,112220.0,112210.0,2.06760684]
[1756915880780,0.20080576,112220.0,112210.0,1.24436684]
[1756915880977,0.20080576,112220.0,112210.0,2.06756684]
[1756915881167,0.27565576,112220.0,112210.0,0.39249]
[1756915881483,0.92912268,112220.0,112210.0,0.03193]
[1756915881878,0.92912268,112220.0,112200.0,0.79128842]
[1756915881879,0.12241,112210.0,112200.0,0.00455]
[1756915882070,1.00881036,112210.0,112200.0,0.82761]
[1756915882378,1.261193,112210.0,112200.0,0.82761]
[1756915882579,1.261193,112210.0,112200.0,1.25354842]
[1756915883177,1.261193,112210.0,112200.0,1.24909842]
[1756915883481,1.18102637,112210.0,112200.0,1.24909842]
[1756915883784,1.90951125,112210.0,112200.0,1.24909842]
[1756915884170,1.91151125,112210.0,112200.0,1.07072704]
[1756915885281,1.91251125,112210.0,112200.0,1.07072704]
[1756915885581,2.03111035,112210.0,112200.0,1.07072704]
[1756915887975,1.60517193,112210.0,112200.0,1.07072704]
[1756915888180,1.66920272,112210.0,112200.0,1.07072704]
[1756915888480,1.30840272,112210.0,112200.0,1.49666546]
[1756915888776,0.57991784,112210.0,112200.0,1.85746546]
[1756915888973,0.32991784,112210.0,112200.0,1.85746546]
[1756915889176,0.32991784,112210.0,112200.0,1.00558862]
[1756915889367,0.32991784,112210.0,112200.0,1.85746546]
[1756915889980,0.14109441,112210.0,112200.0,2.53340388]
[1756915890177,0.1812325,112220.0,112200.0,1.25558862]
[1756915890385,0.1812325,112220.0,112210.0,1.63861526]
[1756915890586,0.1336725,112220.0,112210.0,1.21267684]
[1756915890777,0.11722379,112220.0,112210.0,1.21267684]
[1756915891380,0.11722379,112220.0,112210.0,2.03591684]
[1756915891785,0.11822379,112220.0,112210.0,2.03591684]
[1756915892083,0.12022379,112220.0,112210.0,2.03591684]
[1756915893679,0.11822379,112220.0,112210.0,2.03591684]
[1756915893872,0.11922379,112220.0,112210.0,2.03591684]
[1756915894588,0.23350422,112220.0,112210.0,2.03591684]
[1756915894885,0.04956,112220.0,112210.0,2.03591684]
[1756915895983,0.04956,112220.0,112210.0,1.21267684]
[1756915896185,0.09117516,112220.0,112210.0,2.03587684]
[1756915897583,0.16143753,112220.0,112210.0,2.03587684]
[1756915898286,0.23376714,112220.0,112210.0,2.46181526]
[1756915898486,0.04956,112220.0,112210.0,2.46181526]
[1756915898684,0.002,112220.0,112210.0,2.71181526]
[1756915898882,0.05000442,112220.0,112210.0,2.71181526]
[1756915900082,0.05000442,112220.0,112210.0,2.28587684]
[1756915900487,0.09617442,112220.0,112210.0,2.03587684]